Cogmind - Beta 12 @@@ ROGUE MODE // 2023.03.06 @ 01:09:55 // Winter2019/RPGLIKE Player: honey223 Result: Destroyed by B-99 Colossus with Linear Accelerator Performance ------------- Evolutions (9) 4500 Regions Visited (28) 5600 Robots Destroyed (378) 1890 Value Destroyed (28566) 28566 Prototype IDs (21) 420 Alien Tech Used (0) 0 Bonus (25094) 25094 TOTAL SCORE: 66070 Bonus ------- Triggered High Security 500 High Alert Combat Kills 11980 Follower Combat Kills 5237 Entered Garrisons 2000 Used RIF Installer 5500 Aligned with FarCom 300 Scanned by Researcher 500 Friendly Fire -923 Cogmind --------- Core Integrity 0/2200 Matter 47/300 Energy 263/850 System Corruption 0% Temperature Cool (-200) Movement Walking (66) Location -1/Command Parts ------- > --- POWER (4) -------- Quantum Reactor Quantum Reactor Quantum Reactor > --- PROPULSION (4) --- Enhanced Biometal Leg Centrium Leg Potential Leg Potential Leg > --- UTILITY (14) ----- Advanced Cryofiber Web Advanced Coolant Injector Advanced Force Field Relay Coupler [C] (98) Relay Coupler [C] (92) Relay Coupler [C] (104) Relay Coupler [C] (56) Relay Coupler [C] (47) Relay Coupler [C] (68) Relay Coupler [Sentry] (43) Relay Coupler [Demolisher] (40) Relay Coupler [Heavy] (30) Improved System Guard > --- WEAPON (4) ------- Compact HERF Cannon Compact HERF Cannon Fusion Bomb Launcher > --- INVENTORY (8) ---- Quantum Reactor Centrium Leg Advanced Coolant Injector Advanced Weapon Cycler Relay Coupler [Heavy] (34) Light Antimatter Cannon Advanced Remote Datajack Peak State ------------ > --- POWER ------------ Quantum Reactor Quantum Reactor Quantum Reactor Quantum Reactor > --- PROPULSION ------- Enhanced Biometal Leg Centrium Leg Potential Leg Potential Leg > --- UTILITY ---------- Advanced Cryofiber Web Advanced Coolant Injector Advanced Force Field Relay Coupler [C] Relay Coupler [C] Relay Coupler [C] Relay Coupler [C] Relay Coupler [C] Relay Coupler [C] Relay Coupler [C] Relay Coupler [Sentry] Relay Coupler [Demolisher] Relay Coupler [Heavy] Improved System Guard > --- WEAPON ----------- Compact HERF Cannon Compact HERF Cannon Compact HERF Cannon Advanced Remote Datajack > --- INVENTORY -------- Quantum Reactor Centrium Leg Advanced Coolant Injector Advanced Weapon Cycler Graphene Brace Relay Coupler [Heavy] Light Antimatter Cannon Fusion Bomb Launcher [Rating: 212] Favorites ----------- Power Quantum Reactor Engine Light Angular Momentum Engine Power Core Neutrino Core Reactor Quantum Reactor Propulsion Potential Leg Leg Potential Leg Flight Unit Cesium-ion Thruster Utility Advanced Targeting Computer Device Advanced Cryofiber Web Processor Advanced Targeting Computer Hackware Relay Coupler [C] Protection Reactive Plating Weapon Compact HERF Cannon Energy Gun Medium Laser Energy Cannon Compact HERF Cannon Ballistic Gun Minigun Ballistic Cannon Assault Cannon Launcher Rocket Launcher Special Weapon Remote Datajack Impact Weapon Flail Build | -11 -10 -10 -9 -9 -9 -8 -8 -8 -8 -8 -7 -7 -6 -6 -5 -5 -4 -4 -4 -4 -3 -3 -3 -3 -2 -2 -1 -1 ------- Run | Jun Mat Min Mat Min Exi Min Mat Gar Mat Gar Fac Gar Fac Gar Fac Gar Fac Gar Fac Gar Res Gar Res Gar Res Gar Acc Com Slots Evolved 22 | 4 2 1 4 . . . . 3 . 1 . . . . 1 2 . . . . . 2 . . 1 1 . . Power 3 | . . . . . . . . 1 . . . . . . . . . . . . . 1 . . 1 . . . Propulsion 3 | 1 . . 1 . . . . . . . . . . . . 1 . . . . . . . . . . . . Utility 13 | 2 2 1 2 . . . . 2 . 1 . . . . 1 1 . . . . . . . . . 1 . . Weapon 3 | 1 . . 1 . . . . . . . . . . . . . . . . . . 1 . . . . . . Parts Attached 202 | 7 7 1 21 4 6 3 4 9 . 8 . 9 2 13 4 13 2 3 1 7 2 10 8 14 7 10 19 8 Power 21 | 1 . . 1 2 . 1 . 1 . . . . 1 . 2 1 1 . . . 1 2 . 2 3 . 1 1 Engine 8 | 1 . . 1 1 . 1 . 1 . . . . 1 . 2 . . . . . . . . . . . . . Core 2 | . . . . 1 . . . . . . . . . . . . 1 . . . . . . . . . . . Reactor 11 | . . . . . . . . . . . . . . . . 1 . . . . 1 2 . 2 3 . 1 1 Propulsion 16 | 2 2 . 4 . 2 . 1 . . . . . . 1 . 2 . . . . . . . . . . 1 1 Treads . | . . . . . . . . . . . . . . . . . . . . . . . . . . . . . Leg 10 | 2 . . . . 2 . 1 . . . . . . 1 . 2 . . . . . . . . . . 1 1 Wheel . | . . . . . . . . . . . . . . . . . . . . . . . . . . . . . Hover . | . . . . . . . . . . . . . . . . . . . . . . . . . . . . . Flight 6 | . 2 . 4 . . . . . . . . . . . . . . . . . . . . . . . . . Utility 82 | 2 4 1 5 2 . . . 5 . 6 . 7 . 10 2 6 1 2 . 3 . 3 4 7 1 4 4 3 Device 26 | 2 1 . 1 1 . . . 1 . 2 . 2 . 4 . 2 1 1 . 3 . . 3 . . . 1 1 Storage . | . . . . . . . . . . . . . . . . . . . . . . . . . . . . . Processor 11 | . 3 1 4 1 . . . 1 . . . . . . . . . . . . . . . . . . . 1 Hackware 42 | . . . . . . . . 2 . 4 . 5 . 4 2 4 . 1 . . . 3 1 7 1 4 3 1 Protection 3 | . . . . . . . . 1 . . . . . 2 . . . . . . . . . . . . . . Artifact . | . . . . . . . . . . . . . . . . . . . . . . . . . . . . . Weapon 83 | 2 1 . 11 . 4 2 3 3 . 2 . 2 1 2 . 4 . 1 1 4 1 5 4 5 3 6 13 3 Energy Gun 2 | 1 . . 1 . . . . . . . . . . . . . . . . . . . . . . . . . Energy Cannon 13 | . . . 1 . 1 . . . . . . 2 . . . 2 . . . . . . 3 . . . 4 . Ballistic Gun 10 | 1 . . 5 . 2 1 . 1 . . . . . . . . . . . . . . . . . . . . Ballistic Cannon 19 | . 1 . 2 . . . 2 . . 1 . . . 1 . . . . . 3 1 2 1 . 1 1 3 . Launcher 18 | . . . 2 . . 1 . 1 . 1 . . 1 . . . . 1 . . . 1 . 2 1 2 3 2 Special Weapon 20 | . . . . . 1 . . 1 . . . . . 1 . 2 . . 1 1 . 2 . 3 1 3 3 1 Impact Weapon 1 | . . . . . . . 1 . . . . . . . . . . . . . . . . . . . . . Slashing Weapon . | . . . . . . . . . . . . . . . . . . . . . . . . . . . . . Piercing Weapon . | . . . . . . . . . . . . . . . . . . . . . . . . . . . . . Special Melee Weapon . | . . . . . . . . . . . . . . . . . . . . . . . . . . . . . Unidentified Prototypes 7 | . . . 1 . 3 . . . . . . . . 1 . . . . . . 1 . . . 1 . . . Parts Lost 1 | . . . . . . . . . . . . . . . . . . . . . . . . . . . . 1 Power . | . . . . . . . . . . . . . . . . . . . . . . . . . . . . . Propulsion . | . . . . . . . . . . . . . . . . . . . . . . . . . . . . . Utility . | . . . . . . . . . . . . . . . . . . . . . . . . . . . . . Weapon 1 | . . . . . . . . . . . . . . . . . . . . . . . . . . . . 1 Highest Loss Streak 1 | . . . . . . . . . . . . . . . . . . . . . . . . . . . . 1 To Critical Strikes . | . . . . . . . . . . . . . . . . . . . . . . . . . . . . . Average Slot Usage (%) 98 | . 94 100 99 100 99 100 99 100 100 100 100 99 99 97 93 95 100 100 100 99 100 99 99 100 100 100 99 99 Engine 4 | . 11 9 7 4 6 6 6 9 11 10 10 10 10 10 10 8 . . . . . . . . . . . . Reactor 4 | . . . . . . . . . . . . . . . . . 4 4 4 4 5 11 12 12 14 15 14 14 Leg 14 | . 14 . . . 10 13 13 17 16 15 15 15 15 14 15 15 18 18 18 18 18 16 16 16 16 15 14 15 Flight 2 | . 8 18 22 20 8 6 5 . . . . . . . . . . . . . . . . . . . . . Device 15 | . 24 18 20 20 20 20 20 17 16 19 15 12 15 14 10 12 13 13 13 15 18 16 16 16 16 15 10 11 Processor 16 | . 12 36 32 33 33 33 33 28 22 21 21 20 15 15 15 14 13 13 13 13 13 12 12 12 12 10 5 2 Hackware 18 | . . . . . . . . 3 11 8 15 18 21 20 27 28 27 27 27 24 22 20 19 22 24 26 35 38 Protection 2 | . . . . . . . . 3 5 5 5 5 5 4 5 4 4 4 4 4 4 4 4 1 . . . . Energy Cannon 4 | . . . . . . . . . . . . 4 10 5 . 1 9 9 9 4 . . 7 12 12 11 10 11 Ballistic Gun 2 | . 11 9 6 20 19 19 19 4 . . . . . . . . . . . . . . . . . . . . Ballistic Cannon 4 | . 5 9 5 . . . . 11 11 10 10 5 . 2 5 4 . . . 4 9 11 5 . . . . . Special Weapon 2 | . . . . . . . . 1 5 5 5 5 2 4 5 4 4 1 2 3 4 3 3 3 3 2 2 2 Naked Turns . | . . . . . . . . . . . . . . . . . . . . . . . . . . . . . Heaviest Build 131 | 11 13 12 20 20 16 21 25 50 50 55 54 64 64 60 65 80 81 81 81 90 94 117 117 121 124 131 130 130 Greatest Support 125 | 20 25 13 20 20 65 65 35 65 65 65 65 65 65 77 77 125 125 125 95 95 95 125 125 125 125 125 125 125 Greatest Overweight (x) 1 | . 1 . 1 . 1 . . . . . . . . . . . . . . . . . . . . 1 1 1 Average Overweight (x) . | . . . . . . . . . . . . . . . . . . . . . . . . . . . . . Largest Inventory Capacity 8 | . 1 1 3 3 3 3 3 3 3 3 3 5 5 5 5 5 6 7 7 7 7 7 8 8 8 8 8 8 Average Capacity 5 | . . 1 1 3 3 3 3 3 3 3 3 4 5 5 5 5 5 6 7 7 7 7 7 8 8 8 8 8 Most Carried 8 | . 1 1 3 3 3 3 3 3 3 3 3 5 5 5 5 5 6 7 7 7 7 7 8 8 8 8 8 8 Average Carried 5 | . . . 1 3 3 3 2 2 3 2 3 4 4 4 5 4 5 5 7 6 7 6 7 7 7 7 7 7 Final Capacity 8 | . 1 1 3 3 3 3 3 3 3 3 3 5 5 5 5 5 6 7 7 7 7 7 8 8 8 8 8 8 Final Carried 8 | . 1 1 3 3 3 3 3 3 3 3 3 5 5 5 5 5 6 7 7 7 7 7 8 8 7 8 6 7 Class Distribution -------------------- 46% | Botlord-Mutant 11% | Bothacker-Mutant 11% | Botlord-Gunner 8% | Mutant 7% | Gunner 5% | Commander-Mutant 4% | Sprinter 4% | Scavenger-Mutant Dominant Class ---------------- Mutant | -10/Materials Scavenger-Mutant | -10/Mines Sprinter | -9/Materials Sprinter | -9/Mines Gunner | -9/Exiles Gunner | -8/Mines Gunner | -8/Materials Gunner | -8/Garrison Bothacker-Mutant | -8/Materials Commander-Mutant | -8/Garrison Commander-Mutant | -7/Factory Commander-Mutant | -7/Garrison Bothacker-Mutant | -6/Factory Bothacker-Mutant | -6/Garrison Botlord-Mutant | -5/Factory Botlord-Mutant | -5/Garrison Botlord-Mutant | -4/Factory Botlord-Mutant | -4/Garrison Botlord-Mutant | -4/Factory Botlord-Mutant | -4/Garrison Botlord-Mutant | -3/Research Botlord-Mutant | -3/Garrison Botlord-Gunner | -3/Research Botlord-Mutant | -3/Garrison Botlord-Mutant | -2/Research Botlord-Mutant | -2/Garrison Botlord-Mutant | -1/Access Botlord-Mutant | -1/Command Resources | -11 -10 -10 -9 -9 -9 -8 -8 -8 -8 -8 -7 -7 -6 -6 -5 -5 -4 -4 -4 -4 -3 -3 -3 -3 -2 -2 -1 -1 ----------- Run | Jun Mat Min Mat Min Exi Min Mat Gar Mat Gar Fac Gar Fac Gar Fac Gar Fac Gar Fac Gar Res Gar Res Gar Res Gar Acc Com Matter Collected 10039 | 300 797 38 845 244 72 187 324 1150 . 364 . 225 45 309 106 1100 89 172 . 640 . 1075 165 238 247 413 851 43 Remotely 4470 | . . . . . . . . 989 . 364 . 149 . 294 106 845 17 . . 542 . 1075 89 . . . . . Salvage Created 14405 | 140 637 44 1402 221 . 311 510 669 . 186 . 54 88 211 . 939 374 211 . 928 . 552 352 1278 1007 1959 2289 43 Parts 709 | 10 46 2 95 29 . 19 21 52 . 21 . 3 . 15 . 40 16 22 . 29 . 13 29 64 48 67 66 2 Haulers Intercepted 7 | . 1 . 6 . . . . . . . . . . . . . . . . . . . . . . . . . Recyclers Shooed 1 | . 1 . . . . . . . . . . . . . . . . . . . . . . . . . . . Parts Field Recycled . | . . . . . . . . . . . . . . . . . . . . . . . . . . . . . Retrieved Matter . | . . . . . . . . . . . . . . . . . . . . . . . . . . . . . Parts Self-Destructed . | . . . . . . . . . . . . . . . . . . . . . . . . . . . . . Prevented . | . . . . . . . . . . . . . . . . . . . . . . . . . . . . . Kills | -11 -10 -10 -9 -9 -9 -8 -8 -8 -8 -8 -7 -7 -6 -6 -5 -5 -4 -4 -4 -4 -3 -3 -3 -3 -2 -2 -1 -1 ------- Run | Jun Mat Min Mat Min Exi Min Mat Gar Mat Gar Fac Gar Fac Gar Fac Gar Fac Gar Fac Gar Res Gar Res Gar Res Gar Acc Com Combat Hostiles Destroyed 340 | . 18 1 32 11 . 7 8 30 . 11 . 2 8 7 1 27 3 12 . 23 . 23 8 28 13 25 42 . Melee 1 | . . . . . . . . . . . . . . 1 . . . . . . . . . . . . . . Guns 58 | . 13 . 11 11 . 4 8 11 . . . . . . . . . . . . . . . . . . . . Cannons 162 | . 4 1 15 . . . . 16 . 4 . 2 8 6 1 26 3 2 . 20 . 17 4 10 2 8 13 . AOE 68 | . . . 6 . . 3 . 3 . 7 . . . . . . . 9 . . . 6 . 5 4 4 21 . Classes Destroyed 26 | 2 6 . 3 . . 1 . 2 . 1 . . 1 1 . 2 . . . 1 . . . . 1 . 5 . Worker 4 | . 2 . . . . . . . . . . . . . . . 1 . . . . . . . 1 . . . Builder 2 | . 1 . . . . . . . . . . . . . . . . . . . . . . . . . 1 . Tunneler 5 | 4 . . 1 . . . . . . . . . . . . . . . . . . . . . . . . . Hauler 7 | . 1 . 6 . . . . . . . . . . . . . . . . . . . . . . . . . Recycler 4 | 1 1 . 1 . . . . . . . . . . . . . 1 . . . . . . . . . . . Mechanic 2 | . . . . . . . . . . . . . . . . . . . . . . . . . . . 2 . Operator 5 | . . . 4 . . . . . . . . . . . . . . . . . . . . . . . . 1 Watcher 12 | . 3 . 1 . . . 1 . . 1 . . . . . . 1 . . 2 . . 1 . . . 1 1 Swarmer 81 | . 6 . 7 5 . 3 . 11 . 7 . . . 2 . . . 10 . 3 . 7 . 8 4 6 2 . Cutter 2 | . . . . . . . . . . . . . . . . 1 . . . 1 . . . . . . . . Saboteur 8 | . . . . . . . . . . . . . . 2 . . . . . . . 3 . . . . 3 . Grunt 113 | . 12 1 17 4 . 4 3 9 . 1 . 1 . 2 1 11 1 1 . 15 . 6 1 6 . 5 12 . Brawler 8 | . . . 1 1 . . . . . . . . . . . 2 . . . . . . . 2 . 1 1 . Duelist 8 | . . . . . . . . . . . . . . . . 2 . . . . . . . 3 . 1 2 . Protector 1 | . . . . . . . . . . . . . . . . . . . . . . . . . . . 1 . Sentry 31 | . . . 7 1 . . 3 2 . 2 . . . . . 1 . . . . . . 3 3 3 5 1 . Demolisher 2 | . . . . . . . . . . 1 . . . . . . . . . . . . . . . . 1 . Specialist 2 | . . . . . . . . . . . . . . . . . . . . 2 . . . . . . . . Hunter 39 | . . . . . . 1 2 2 . . . . . . . 2 2 . . . . 7 2 6 4 4 7 . Programmer 26 | . . . . . . . . 5 . . . 1 . 1 . 7 . . . 1 . . 2 . . 1 8 . Heavy 1 | . . . . . . . . . . . . . . . . . . . . . . . . . 1 . . . Behemoth 7 | . . . . . . . . 1 . . . . . . . 1 . 1 . 1 . . . . 1 2 . . Investigator 1 | . . . . . . . . . . . . . . . . . . . . . . . . . . . 1 . Striker 3 | . . . . . . . . . . . . . . . . . . . . . . . . . . . 3 . Executioner 4 | . . . . . . . . . . . . . . . . . . . . . . . . . . . 4 . Assembled 8 | . . . . . . . . . . . . . 8 . . . . . . . . . . . . . . . Best Kill Streak 10 | 3 7 1 8 7 . 4 3 4 . 7 . 1 7 2 1 4 2 5 . 5 . 5 3 5 4 8 10 1 Combat Bots Only 9 | . 6 1 4 7 . 4 3 4 . 7 . 1 7 2 1 4 1 5 . 5 . 5 3 5 4 8 9 . Max Kills in Single Turn 5 | 1 1 1 3 1 . 2 1 2 . 4 . 1 2 1 1 1 1 5 . 1 . 3 1 3 2 4 4 1 Gunslinging . | . . . . . . . . . . . . . . . . . . . . . . . . . . . . . Exploded 5 | . . . 3 . . 2 . 2 . 4 . . . . . . . 5 . . . 3 . 3 2 4 3 . Melee 1 | . . . . . . . . . . . . . . 1 . . . . . . . . . . . . . . Uniques/NPCs Destroyed . | . . . . . . . . . . . . . . . . . . . . . . . . . . . . . Combat | -11 -10 -10 -9 -9 -9 -8 -8 -8 -8 -8 -7 -7 -6 -6 -5 -5 -4 -4 -4 -4 -3 -3 -3 -3 -2 -2 -1 -1 -------- Run | Jun Mat Min Mat Min Exi Min Mat Gar Mat Gar Fac Gar Fac Gar Fac Gar Fac Gar Fac Gar Res Gar Res Gar Res Gar Acc Com Damage Taken 12974 | . 530 62 335 117 . 157 316 774 . 334 . 114 274 265 27 1162 642 156 48 1317 . 777 215 232 192 1439 2779 710 Core 9892 | . 432 59 266 85 . 120 246 592 . 216 . 91 198 195 17 844 462 111 19 964 . 572 162 168 149 1154 2193 577 Absorbed by Shields 6496 | . . . . . . . . . . 43 . 33 55 55 8 386 191 47 16 410 . 495 179 242 200 1247 2532 357 Redirected to Core 8509 | . 305 11 219 85 . 120 246 496 . 196 . 67 198 177 17 723 434 103 19 827 . 519 101 138 149 978 1911 470 Core Remaining (%) 95 | 100 . 90 . . . 84 . . . 84 . 100 . 98 . 96 . . . 99 . . . 100 . 100 . . Volleys Fired 1081 | 10 113 3 96 18 . 15 27 95 . 30 . 31 12 51 12 99 28 28 . 77 . 57 25 48 34 78 82 12 Largest 4 | 2 2 2 3 3 . 3 3 3 . 2 . 2 2 2 1 2 2 2 . 3 . 3 3 3 3 3 4 3 Hottest 342 | 70 70 55 91 75 . 83 75 113 . 88 . 90 180 180 75 240 240 240 . 240 . 192 282 282 282 282 342 282 Shots Fired 1925 | 20 215 6 202 54 . 35 81 220 . 42 . 37 22 61 12 103 37 34 . 143 . 121 35 98 65 144 124 14 Gun 522 | 20 158 3 120 54 . 32 81 54 . . . . . . . . . . . . . . . . . . . . Cannon 1164 | . 57 3 78 . . . . 162 . 27 . 20 21 34 1 92 26 16 . 137 . 109 29 89 51 126 82 4 Launcher 60 | . . . 4 . . 3 . 2 . 6 . . . . . . . 4 . . . 4 . 2 3 2 26 4 Special 179 | . . . . . . . . 2 . 9 . 17 1 27 11 11 11 14 . 6 . 8 6 7 11 16 16 6 Kinetic 1058 | 10 159 6 160 54 . 32 81 216 . 27 . 14 . 4 1 83 . . . 70 . 109 8 . 2 13 9 . Thermal 279 | 10 56 . 38 . . . . . . . . 6 21 30 . 9 26 16 . 67 . . . . . . . . Explosive 60 | . . . 4 . . 3 . 2 . 6 . . . . . . . 4 . . . 4 . 2 3 2 26 4 Electromagnetic 349 | . . . . . . . . . . . . . . . . . . . . . . . 21 89 49 113 73 4 Robot Hit Streak 59 | 4 24 3 21 22 . 17 20 35 . 23 . 9 12 40 6 37 11 15 . 23 . 14 18 59 41 41 41 12 Robot Miss Streak 4 | 1 3 1 3 2 . 1 2 1 . 4 . 3 1 1 1 2 2 3 . 2 . 1 2 1 1 1 2 . Penetration Max . | . . . . . . . . . . . . . . . . . . . . . . . . . . . . . Secondary Targets 4 | . 1 . . 2 . . 1 . . . . . . . . . . . . . . . . . . . . . Max Gunslinging Chain 1 | . 1 . . 1 . . 1 . . . . . . . . . . . . . . . . . . . . . Shots Hit Robots 1312 | 13 101 4 113 35 . 20 61 152 . 23 . 19 14 42 10 75 27 17 . 107 . 87 29 79 58 122 97 7 Core Hits 600 | 6 38 2 57 15 . 15 19 67 . 17 . 3 7 6 . 27 9 13 . 35 . 40 11 38 19 30 119 7 Critical Kills 4 | . . . . . . . . . . . . . . . . 1 . . . 3 . . . . . . . . Critical Parts Destroyed 4 | . . . 1 . . . 1 2 . . . . . . . . . . . . . . . . . . . . Critical Strikes 49 | . 7 . 4 . . . 1 6 . . . . . 1 . 7 . . . 7 . 4 3 . . 8 1 . Burn 7 | . 6 . 1 . . . . . . . . . . . . . . . . . . . . . . . . . Meltdown 4 | . . . . . . . . . . . . . . . . 1 . . . 3 . . . . . . . . Destroy 4 | . . . 1 . . . 1 2 . . . . . . . . . . . . . . . . . . . . Blast 24 | . 1 . 2 . . . . 4 . . . . . 1 . 6 . . . 4 . 4 . . . 2 . . Corrupt 10 | . . . . . . . . . . . . . . . . . . . . . . . 3 . . 6 1 . Melee Attacks 1 | . . . . . . . 1 . . . . . . . . . . . . . . . . . . . . . Impact 1 | . . . . . . . 1 . . . . . . . . . . . . . . . . . . . . . Slashing . | . . . . . . . . . . . . . . . . . . . . . . . . . . . . . Piercing . | . . . . . . . . . . . . . . . . . . . . . . . . . . . . . Sneak Attacks . | . . . . . . . . . . . . . . . . . . . . . . . . . . . . . Combat Hostiles . | . . . . . . . . . . . . . . . . . . . . . . . . . . . . . Follow-up Attacks . | . . . . . . . . . . . . . . . . . . . . . . . . . . . . . Damage Inflicted 46831 | 160 1434 61 2323 628 . 601 951 3128 . 843 . 200 482 614 66 4449 1059 741 . 4240 . 3251 1114 3632 2024 3961 10363 506 Guns 4991 | 160 1163 13 959 628 . 332 951 785 . . . . . . . . . . . . . . . . . . . . Cannons 29418 | . 245 48 973 . . . . 2120 . 357 . 200 482 614 66 4403 851 219 . 4191 . 2826 1025 2895 1515 3615 2721 52 Explosions 11973 | . 26 . 391 . . 251 . 223 . 486 . . . . . . . 522 . . . 402 . 737 509 346 7626 454 Melee . | . . . . . . . . . . . . . . . . . . . . . . . . . . . . . Ramming 449 | . . . . . . 18 . . . . . . . . . 46 208 . . 49 . 23 89 . . . 16 . Kinetic 18209 | 61 933 61 1461 628 . 332 951 2905 . 357 . 200 . 149 66 4149 . . . 1846 . 2826 346 . . 566 372 . Thermal 5895 | 99 475 . 471 . . . . . . . . . 482 465 . 254 851 219 . 2345 . . . 234 . . . . Explosive 11713 | . . . 391 . . 251 . 223 . 486 . . . . . . . 522 . . . 402 . 503 509 346 7626 454 Electromagnetic 10565 | . 26 . . . . . . . . . . . . . . . . . . . . . 679 2895 1515 3049 2349 52 Impact . | . . . . . . . . . . . . . . . . . . . . . . . . . . . . . Slashing . | . . . . . . . . . . . . . . . . . . . . . . . . . . . . . Piercing . | . . . . . . . . . . . . . . . . . . . . . . . . . . . . . Highest Corruption 6 | . . . . . . . . 2 . . . 2 . . . 2 . . . 1 . . . . . . 6 6 Average Corruption 3 | . . . . . . . . 1 . . . 1 . . . 1 . . . 1 . . . . . . 3 6 Corruption Purged 9 | . . . . . . . . 4 . . . 2 . . . 2 . . . 1 . . . . . . . . Corruption Blocked . | . . . . . . . . . . . . . . . . . . . . . . . . . . . . . Effects 21 | . . . . . . . . 2 . . . . . . . 2 . . . . . . . . . . 9 8 Message Errors 5 | . . . . . . . . 1 . . . . . . . 1 . . . . . . . . . . . 3 Matter Fused 5 | . . . . . . . . . . . . . . . . . . . . . . . . . . . 2 3 Heat Flow Errors 7 | . . . . . . . . 1 . . . . . . . . . . . . . . . . . . 4 2 Energy Discharges 2 | . . . . . . . . . . . . . . . . 1 . . . . . . . . . . 1 . Data Loss (minor) 1 | . . . . . . . . . . . . . . . . . . . . . . . . . . . 1 . Misfires 1 | . . . . . . . . . . . . . . . . . . . . . . . . . . . 1 . Overload Shots . | . . . . . . . . . . . . . . . . . . . . . . . . . . . . . Overflow Damage 1469 | . . . 34 . . 3 . 24 . 2 . 10 27 115 22 357 84 5 . 207 . 74 46 39 54 197 169 . Projectiles 1139 | . . . 10 . . . . 14 . . . 10 27 115 22 357 73 . . 203 . 74 44 11 13 132 34 . Explosions 310 | . . . 24 . . . . 10 . 2 . . . . . . . 5 . . . . . 28 41 65 135 . Melee 20 | . . . . . . 3 . . . . . . . . . . 11 . . 4 . . 2 . . . . . Knockbacks 76 | . 5 . 6 . . 1 . 13 . 4 . . . 1 . 13 2 . . 10 . 9 1 . . 8 3 . Impact 4 | . . . . . . 1 . . . . . . . . . . 2 . . . . . 1 . . . . . Kinetic 67 | . 5 . 5 . . . . 11 . 4 . . . 1 . 13 . . . 8 . 9 . . . 8 3 . Secondary 5 | . . . 1 . . . . 2 . . . . . . . . . . . 2 . . . . . . . . Self-Inflicted Damage 229 | . . . . . . . . 40 . 30 . . . . . . . 57 . . . . . 46 . . 56 . Shots 8 | . . . . . . . . 1 . 1 . . . . . . . 1 . . . . . 2 . . 3 . Rammed . | . . . . . . . . . . . . . . . . . . . . . . . . . . . . . Targets Rammed 29 | . . . . . . 1 . . . . . . . . . 3 12 . . 4 . 2 5 . . . 2 . Kicked 29 | . . . . . . 1 . . . . . . . . . 3 12 . . 4 . 2 5 . . . 2 . Crushed . | . . . . . . . . . . . . . . . . . . . . . . . . . . . . . Highest Temperature 485 | 36 . . . 1 . 1 . 129 . . . 48 288 244 6 361 374 242 . 197 . 198 156 218 235 293 485 37 Average Temperature 85 | 16 . . . 1 . 1 . 33 . . . 21 116 48 4 30 111 107 . 109 . 112 60 87 97 113 102 22 Received Heat Transfer 1930 | . 267 33 159 12 . 63 72 243 . 25 . 14 29 82 . 230 20 7 . 235 . 115 12 8 24 178 98 4 Effects 10 | . . . . . . . . . . . . . . . . 2 . 4 . . . . . 1 . 3 . . Shutdowns 2 | . . . . . . . . . . . . . . . . 2 . . . . . . . . . . . . Energy Bleed 2 | . . . . . . . . . . . . . . . . . . 1 . . . . . 1 . . . . Interference 6 | . . . . . . . . . . . . . . . . . . 3 . . . . . . . 3 . . Siege Activations . | . . . . . . . . . . . . . . . . . . . . . . . . . . . . . Robots Corrupted 45 | . . . . . . . . . . . . . . . . . . . . . . . 4 13 7 13 8 . Combat Hostiles 45 | . . . . . . . . . . . . . . . . . . . . . . . 4 13 7 13 8 . Parts Fried 110 | . . . . . . . . . . . . . . . . . 1 . . 1 . . 8 27 22 31 18 2 Impact Corruptions 5 | . . . . . . 1 . . . . . . . . . . 1 . . 2 . . 1 . . . . . Robots Melted 6 | . 1 . . . . . . . . . . . . . . 1 . 1 . 3 . . . . . . . . Combat Hostiles 6 | . 1 . . . . . . . . . . . . . . 1 . 1 . 3 . . . . . . . . Parts Melted 26 | 1 7 . . . . . . . . 2 . 1 . 1 . 1 . . . 10 . 2 . 1 . . . . Heat Transferred 8069 | 296 1813 . 1147 . . . . . . . . . 750 700 . 222 721 185 . 2035 . . . 200 . . . . Parts Sabotaged 8 | . . . . . . . . . . . . . . 3 . . . . . . . . . . . . 5 . Parts Stolen . | . . . . . . . . . . . . . . . . . . . . . . . . . . . . . Parts Stripped . | . . . . . . . . . . . . . . . . . . . . . . . . . . . . . Power Chain Reactions 3 | . . . . . . . . . . . . . . . . . . . . . . . . 3 . . . . Missiles Intercepted . | . . . . . . . . . . . . . . . . . . . . . . . . . . . . . Alert | -11 -10 -10 -9 -9 -9 -8 -8 -8 -8 -8 -7 -7 -6 -6 -5 -5 -4 -4 -4 -4 -3 -3 -3 -3 -2 -2 -1 -1 ------- Run | Jun Mat Min Mat Min Exi Min Mat Gar Mat Gar Fac Gar Fac Gar Fac Gar Fac Gar Fac Gar Res Gar Res Gar Res Gar Acc Com Peak Influence 4072 | 25 752 345 1305 788 . 253 276 1525 742 1713 898 1732 911 1750 952 1949 1428 1421 782 1593 895 1770 1116 2206 2193 3491 4072 2731 Initial 2605 | . 16 292 134 508 . . 31 59 742 482 898 628 909 622 918 546 1022 891 745 547 895 671 995 819 1240 1665 2094 2605 Average 1261 | 12 354 320 801 665 . 144 130 775 742 1331 898 1340 889 1244 880 1347 1145 1203 757 1047 895 1181 1024 1659 1541 2576 2806 2604 Maximum Alert Level 5 | . 3 1 4 3 . 1 1 4 3 5 3 5 3 5 3 5 4 4 3 4 3 5 4 5 5 5 5 5 Low Security (%) 6 | 100 31 . 1 . . 59 85 12 . . . . . . . . . . . . . . . . . . . . Level 1 4 | . 25 100 7 . . 40 14 7 . . . . . . . . . . . . . . . . . . . . Level 2 8 | . 35 . 23 50 . . . 26 . 11 . 9 . 9 1 5 . . . 13 . 3 . . . . . . Level 3 28 | . 7 . 51 49 . . . 24 100 . 100 20 100 26 98 24 39 37 100 54 100 40 99 14 . . . . Level 4 26 | . . . 15 . . . . 28 . 68 . 26 . 43 . 36 60 62 . 32 . 42 . 32 63 . . . Level 5 22 | . . . . . . . . . . 18 . 43 . 21 . 34 . . . . . 12 . 53 36 100 14 100 High Security 3 | . . . . . . . . . . . . . . . . . . . . . . . . . . . 85 . Max Security . | . . . . . . . . . . . . . . . . . . . . . . . . . . . . . Squads Dispatched 52 | . 5 . 6 1 . . 1 . . . . . 1 . 3 . 4 . . . . . 2 . 3 . 24 2 Investigation 11 | . 5 . 4 1 . . 1 . . . . . . . . . . . . . . . . . . . . . Extermination 1 | . . . . . . . . . . . . . . . . . 1 . . . . . . . . . . . Reinforcement 7 | . . . 2 . . . . . . . . . . . 1 . 1 . . . . . . . 1 . 2 . Assault 30 | . . . . . . . . . . . . . 1 . . . 2 . . . . . 2 . 1 . 22 2 Garrison 3 | . . . . . . . . . . . . . . . 2 . . . . . . . . . 1 . . . Intercept . | . . . . . . . . . . . . . . . . . . . . . . . . . . . . . Searches Triggered . | . . . . . . . . . . . . . . . . . . . . . . . . . . . . . Construction Impeded 2 | . . . . . . . . . . . . . . . . . . . . . . . . . 1 . 1 . Haulers Reinforced 2 | . . . . . . . . . . . . . . . . . 1 . . . . . . . . . 1 . Active Scanning Responses . | . . . . . . . . . . . . . . . . . . . . . . . . . . . . . Cargo Convoy Interrupts . | . . . . . . . . . . . . . . . . . . . . . . . . . . . . . Stealth | -11 -10 -10 -9 -9 -9 -8 -8 -8 -8 -8 -7 -7 -6 -6 -5 -5 -4 -4 -4 -4 -3 -3 -3 -3 -2 -2 -1 -1 --------- Run | Jun Mat Min Mat Min Exi Min Mat Gar Mat Gar Fac Gar Fac Gar Fac Gar Fac Gar Fac Gar Res Gar Res Gar Res Gar Acc Com Distress Signals 23 | . 2 2 2 . . . 1 . . 1 . . . . . . 3 . . 1 . . 3 . 2 . 3 3 Communications Jammed 336 | . . . . . . . . . . . . . . . . . 66 . . 39 . . 65 . 22 . 144 . Distress Signals 336 | . . . . . . . . . . . . . . . . . 66 . . 39 . . 65 . 22 . 144 . Times Spotted 681 | . 27 2 38 11 . 5 11 36 . 31 . 33 17 43 11 45 30 18 . 41 . 33 27 18 25 45 116 18 Peak Tracking Total 20 | . 8 2 7 4 . 2 3 4 . 12 . 7 4 7 3 9 13 4 . 6 . 5 6 3 5 7 20 16 Tactical Retreats 27 | . 3 . . . . . . 1 . 1 . . 1 . . 1 3 . . 4 . . 1 1 . . 9 2 Traps | -11 -10 -10 -9 -9 -9 -8 -8 -8 -8 -8 -7 -7 -6 -6 -5 -5 -4 -4 -4 -4 -3 -3 -3 -3 -2 -2 -1 -1 ------- Run | Jun Mat Min Mat Min Exi Min Mat Gar Mat Gar Fac Gar Fac Gar Fac Gar Fac Gar Fac Gar Res Gar Res Gar Res Gar Acc Com Traps Triggered 45 | . . . . . . . 1 4 . 5 . 3 1 4 . 5 1 1 . 2 1 2 . 5 . 9 . 1 Indirectly . | . . . . . . . . . . . . . . . . . . . . . . . . . . . . . Trap Hack Attempts . | . . . . . . . . . . . . . . . . . . . . . . . . . . . . . Triggered . | . . . . . . . . . . . . . . . . . . . . . . . . . . . . . Disarmed . | . . . . . . . . . . . . . . . . . . . . . . . . . . . . . Reprogrammed . | . . . . . . . . . . . . . . . . . . . . . . . . . . . . . Reused . | . . . . . . . . . . . . . . . . . . . . . . . . . . . . . Traps Extracted . | . . . . . . . . . . . . . . . . . . . . . . . . . . . . . Installed . | . . . . . . . . . . . . . . . . . . . . . . . . . . . . . Triggered . | . . . . . . . . . . . . . . . . . . . . . . . . . . . . . Machines | -11 -10 -10 -9 -9 -9 -8 -8 -8 -8 -8 -7 -7 -6 -6 -5 -5 -4 -4 -4 -4 -3 -3 -3 -3 -2 -2 -1 -1 ---------- Run | Jun Mat Min Mat Min Exi Min Mat Gar Mat Gar Fac Gar Fac Gar Fac Gar Fac Gar Fac Gar Res Gar Res Gar Res Gar Acc Com Machines Disabled 118 | . 21 . 17 2 . 4 . 10 . 5 . 5 . 7 2 6 3 2 . 4 . 5 . 8 1 10 6 . Max in Single Turn 3 | . 1 . 3 1 . 1 . 1 . 1 . 1 . 1 . 1 . 1 . 1 . 1 . 1 . 2 2 . Garrison Access 1 | . . . . . . . . . . . . . . . . . . . . . . . . . . . 1 . Garrison Relay 47 | . . . . . . . . 8 . 4 . 4 . 4 . 6 . 2 . 3 . 4 . 7 . 5 . . Phase Generator 1 | . . . . . . . . . . . . . . . . . . . . . . . . . . 1 . . Energy Cycler 1 | . . . . . . . . . . . . . . . . . . . . . . . . . . . 1 . Machines Repaired 2 | . 2 . . . . . . . . . . . . . . . . . . . . . . . . . . . Machines Sabotaged . | . . . . . . . . . . . . . . . . . . . . . . . . . . . . . Overloaded Fab Kills . | . . . . . . . . . . . . . . . . . . . . . . . . . . . . . Hacking | -11 -10 -10 -9 -9 -9 -8 -8 -8 -8 -8 -7 -7 -6 -6 -5 -5 -4 -4 -4 -4 -3 -3 -3 -3 -2 -2 -1 -1 --------- Run | Jun Mat Min Mat Min Exi Min Mat Gar Mat Gar Fac Gar Fac Gar Fac Gar Fac Gar Fac Gar Res Gar Res Gar Res Gar Acc Com Machines Accessed 65 | . 7 . 11 1 1 2 5 4 1 1 1 1 2 2 1 2 2 2 3 3 1 2 1 2 1 1 3 2 Terminals 50 | . 6 . 10 . . 2 4 4 . 1 . 1 1 2 . 2 1 2 2 3 . 2 . 2 . 1 2 2 Fabricators . | . . . . . . . . . . . . . . . . . . . . . . . . . . . . . Repair Stations . | . . . . . . . . . . . . . . . . . . . . . . . . . . . . . Recycling Units 2 | . 1 . 1 . . . . . . . . . . . . . . . . . . . . . . . . . Scanalyzers . | . . . . . . . . . . . . . . . . . . . . . . . . . . . . . Garrison Access 11 | . . . . . . . 1 . 1 . 1 . 1 . 1 . 1 . 1 . 1 . 1 . 1 . 1 . Total Hacks 136 | . 23 . 31 1 1 5 13 9 1 3 1 1 3 6 1 2 3 2 6 5 1 3 1 4 1 3 4 2 Successful 63 | . 11 . 12 1 1 2 7 2 1 . 1 1 1 . 1 2 2 2 4 3 1 1 1 2 1 . 3 . Failed 73 | . 12 . 19 . . 3 6 7 . 3 . . 2 6 . . 1 . 2 2 . 2 . 2 . 3 1 2 Catastrophic 17 | . 1 . 4 . . 1 . 3 . 1 . . . 2 . . . . . 1 . . . 1 . . 1 2 Database Lockouts . | . . . . . . . . . . . . . . . . . . . . . . . . . . . . . Manual 46 | . 16 . 17 . 1 5 4 . . . . . 2 . . . . . . . . . . . . . 1 . Terminals 115 | . 21 . 27 . . 5 10 9 . 3 . 1 2 6 . 2 2 2 5 5 . 3 . 4 . 3 3 2 Fabricators . | . . . . . . . . . . . . . . . . . . . . . . . . . . . . . Repair Stations . | . . . . . . . . . . . . . . . . . . . . . . . . . . . . . Recycling Units 6 | . 2 . 4 . . . . . . . . . . . . . . . . . . . . . . . . . Scanalyzers . | . . . . . . . . . . . . . . . . . . . . . . . . . . . . . Garrison Access 13 | . . . . . . . 3 . 1 . 1 . 1 . 1 . 1 . 1 . 1 . 1 . 1 . 1 . Terminal Hacks 39 | . 6 . 8 1 1 1 4 2 . . . 1 . . . 2 1 2 3 3 . 1 . 2 . . 1 . Record 1 | . . . . . 1 . . . . . . . . . . . . . . . . . . . . . . . Robot Analysis 2 | . 2 . . . . . . . . . . . . . . . . . . . . . . . . . . . Prototype ID Bank 3 | . 2 . 1 . . . . . . . . . . . . . . . . . . . . . . . . . Open Door 4 | . . . . 1 . . . 1 . . . . . . . 1 . . . . . . . 1 . . . . Level Access Points 1 | . . . . . . 1 . . . . . . . . . . . . . . . . . . . . . . Branch Access Points 1 | . . . 1 . . . . . . . . . . . . . . . . . . . . . . . . . Emergency Access Points 3 | . . . . . . . . 1 . . . . . . . 1 . . . 1 . . . . . . . . Terminal Index 3 | . . . 1 . . . . . . . . . . . . . 1 . 1 . . . . . . . . . Garrison Index 1 | . . . . . . . . . . . . . . . . . . . 1 . . . . . . . . . Alert Level 2 | . 1 . . . . . 1 . . . . . . . . . . . . . . . . . . . . . Locate Traps 5 | . 1 . 3 . . . . . . . . . . . . . . . 1 . . . . . . . . . Maintenance Status 1 | . . . . . . . . . . . . . . . . . . . . . . . . . . . 1 . Patrol Status 1 | . . . . . . . 1 . . . . . . . . . . . . . . . . . . . . . Hauler Manifests 2 | . . . 1 . . . 1 . . . . . . . . . . . . . . . . . . . . . Registered Components 1 | . . . . . . . 1 . . . . . . . . . . . . . . . . . . . . . Zone Layout 1 | . . . 1 . . . . . . . . . . . . . . . . . . . . . . . . . Garrison Registry 5 | . . . . . . . . . . . . 1 . . . . . 1 . 1 . 1 . 1 . . . . Patrol Navigation 2 | . . . . . . . . . . . . . . . . . . 1 . 1 . . . . . . . . Fabricator Hacks . | . . . . . . . . . . . . . . . . . . . . . . . . . . . . . Repair Station Hacks . | . . . . . . . . . . . . . . . . . . . . . . . . . . . . . Recycling Unit Hacks . | . . . . . . . . . . . . . . . . . . . . . . . . . . . . . Scanalyzer . | . . . . . . . . . . . . . . . . . . . . . . . . . . . . . Garrison Access Hacks 11 | . . . . . . . 1 . 1 . 1 . 1 . 1 . 1 . 1 . 1 . 1 . 1 . 1 . Unlock Access 10 | . . . . . . . 1 . 1 . 1 . 1 . 1 . 1 . 1 . 1 . 1 . 1 . . . Seal Access 1 | . . . . . . . . . . . . . . . . . . . . . . . . . . . 1 . Unauthorized Hacks 13 | . 5 . 4 . . 1 2 . . . . . . . . . . . . . . . . . . . 1 . Terminals 11 | . 4 . 3 . . 1 2 . . . . . . . . . . . . . . . . . . . 1 . Botnet 6 | . 1 . 1 . . 1 2 . . . . . . . . . . . . . . . . . . . 1 . Disrupt 1 | . . . 1 . . . . . . . . . . . . . . . . . . . . . . . . . Sabotage 4 | . 3 . 1 . . . . . . . . . . . . . . . . . . . . . . . . . Fabricators . | . . . . . . . . . . . . . . . . . . . . . . . . . . . . . Repair Stations . | . . . . . . . . . . . . . . . . . . . . . . . . . . . . . Recycling Units 2 | . 1 . 1 . . . . . . . . . . . . . . . . . . . . . . . . . Tunnel 2 | . 1 . 1 . . . . . . . . . . . . . . . . . . . . . . . . . Scanalyzers . | . . . . . . . . . . . . . . . . . . . . . . . . . . . . . Garrison Access . | . . . . . . . . . . . . . . . . . . . . . . . . . . . . . Data Cores Recovered 2 | . . . 1 . . . . . . . . . . . . . . . . . . . . . . . . 1 Used . | . . . . . . . . . . . . . . . . . . . . . . . . . . . . . Hacking Detections 47 | . 5 . 8 . . 2 2 4 . 1 1 1 1 2 . 1 2 1 3 2 1 2 1 1 1 1 2 2 Full Trace Events 13 | . 3 . 3 . . 1 . 1 . 1 . . . 2 . . . . . 1 . . . . . 1 . . Feedback Events . | . . . . . . . . . . . . . . . . . . . . . . . . . . . . . Feedback Blocked . | . . . . . . . . . . . . . . . . . . . . . . . . . . . . . Robot Schematics Acquired . | . . . . . . . . . . . . . . . . . . . . . . . . . . . . . Robots Built . | . . . . . . . . . . . . . . . . . . . . . . . . . . . . . Authchips . | . . . . . . . . . . . . . . . . . . . . . . . . . . . . . Time . | . . . . . . . . . . . . . . . . . . . . . . . . . . . . . Total Robot Build Rating . | . . . . . . . . . . . . . . . . . . . . . . . . . . . . . Part Schematics Acquired . | . . . . . . . . . . . . . . . . . . . . . . . . . . . . . Parts Built . | . . . . . . . . . . . . . . . . . . . . . . . . . . . . . Authchips . | . . . . . . . . . . . . . . . . . . . . . . . . . . . . . Time . | . . . . . . . . . . . . . . . . . . . . . . . . . . . . . Total Part Build Rating . | . . . . . . . . . . . . . . . . . . . . . . . . . . . . . Parts Repaired . | . . . . . . . . . . . . . . . . . . . . . . . . . . . . . Time . | . . . . . . . . . . . . . . . . . . . . . . . . . . . . . Parts Recycled . | . . . . . . . . . . . . . . . . . . . . . . . . . . . . . Recycled Matter . | . . . . . . . . . . . . . . . . . . . . . . . . . . . . . Retrieved Matter . | . . . . . . . . . . . . . . . . . . . . . . . . . . . . . Retrieved Components . | . . . . . . . . . . . . . . . . . . . . . . . . . . . . . Parts Scanalyzed . | . . . . . . . . . . . . . . . . . . . . . . . . . . . . . Part Schematics Acquired . | . . . . . . . . . . . . . . . . . . . . . . . . . . . . . Parts Damaged . | . . . . . . . . . . . . . . . . . . . . . . . . . . . . . Bothacking | -11 -10 -10 -9 -9 -9 -8 -8 -8 -8 -8 -7 -7 -6 -6 -5 -5 -4 -4 -4 -4 -3 -3 -3 -3 -2 -2 -1 -1 ------------ Run | Jun Mat Min Mat Min Exi Min Mat Gar Mat Gar Fac Gar Fac Gar Fac Gar Fac Gar Fac Gar Res Gar Res Gar Res Gar Acc Com Used RIF Installer 11 | . . . . . . . . 2 . 1 . 1 . 1 . 1 . 1 . 1 . 1 . 1 . 1 . . Hotswap 1 | . . . . . . . . . . . . 1 . . . . . . . . . . . . . . . . Command Fork 1 | . . . . . . . . . . . . . . . . . . 1 . . . . . . . . . . Signal Jammer 1 | . . . . . . . . . . . . . . 1 . . . . . . . . . . . . . . Zone Cloak 2 | . . . . . . . . . . 1 . . . . . 1 . . . . . . . . . . . . Patrol Navigation 1 | . . . . . . . . 1 . . . . . . . . . . . . . . . . . . . . Structural Interface 1 | . . . . . . . . . . . . . . . . . . . . . . . . 1 . . . . Program Shield 1 | . . . . . . . . . . . . . . . . . . . . 1 . . . . . . . . Autoassimilate 1 | . . . . . . . . . . . . . . . . . . . . . . . . . . 1 . . Crosswire 1 | . . . . . . . . . . . . . . . . . . . . . . 1 . . . . . . Robots Hacked 172 | . . . . . . . . 2 . 8 . 12 1 21 6 8 7 10 . 5 . 8 6 6 9 17 40 6 Non-combat 11 | . . . . . . . . . . . . . 1 . 4 . 1 . . . . . 1 . 1 . 3 . Combat 161 | . . . . . . . . 2 . 8 . 12 . 21 2 8 6 10 . 5 . 8 5 6 8 17 37 6 Autoassimilated 37 | . . . . . . . . . . . . . . . . . . . . . . . . . . 4 30 3 Robot Hacks Applied 143 | . . . . . . . . 2 . 8 . 13 1 22 9 9 7 10 . 5 . 8 6 6 10 13 11 3 parse_system 6 | . . . . . . . . . . . . 1 . 1 . 2 . . . . . . . . 1 1 . . find_chute 2 | . . . . . . . . . . . . . 1 . 1 . . . . . . . . . . . . . purge_threat 3 | . . . . . . . . . . . . . . . 3 . . . . . . . . . . . . . disarm_traps 1 | . . . . . . . . . . . . . . . 1 . . . . . . . . . . . . . map_route 6 | . . . . . . . . . . . . . . . 1 . 1 . . . . . 1 . 1 . 2 . relay_feed 1 | . . . . . . . . . . . . . . . . . . . . . . . . . . . 1 . find_garrison 3 | . . . . . . . . . . . . . . . . . 1 . . . . . 1 . 1 . . . disrupt_area 1 | . . . . . . . . . . . . . . . . . . . . . . . . . . 1 . . disable_weapons 1 | . . . . . . . . . . 1 . . . . . . . . . . . . . . . . . . reboot_system 2 | . . . . . . . . . . . . . . . . 1 . . . . . . . . 1 . . . overwrite_iff 55 | . . . . . . . . . . 1 . 4 . 10 2 5 4 5 . 3 . 3 1 5 2 5 5 . streamctrl_high 1 | . . . . . . . . . . . . . . 1 . . . . . . . . . . . . . . formatsys_low 1 | . . . . . . . . . . . . . . . 1 . . . . . . . . . . . . . formatsys_high 57 | . . . . . . . . 2 . 6 . 8 . 10 . 1 1 5 . 2 . 4 3 . 4 6 2 3 formatsys_deep 3 | . . . . . . . . . . . . . . . . . . . . . . 1 . 1 . . 1 . Relay Couplers Released 89 | . . . . . . . . 14 . 8 . 10 . 8 . 10 . 3 . 6 . 7 . 14 . 9 . . Machine Destruction 86 | . . . . . . . . 14 . 7 . 8 . 8 . 10 . 3 . 6 . 7 . 14 . 9 . . Programmers 3 | . . . . . . . . . . 1 . 2 . . . . . . . . . . . . . . . . Attached 41 | . . . . . . . . 2 . 4 . 5 . 4 1 4 . 1 . . . 3 1 7 1 4 3 1 Crosswired 15 | . . . . . . . . . . . . . . . . . . . . . . 6 . 4 . 5 . . Fabnet Peak Effective % . | . . . . . . . . . . . . . . . . . . . . . . . . . . . . . Robots Rewired 30 | . . . . . . . . 2 . 6 . . . 2 . 3 . . . . . . . 12 . 5 . . Allies Hacked 4 | . . . . . . . . . . 1 . . . . . 1 . . . . . . . 1 1 . . . Hacks Repelled . | . . . . . . . . . . . . . . . . . . . . . . . . . . . . . Allies | -11 -10 -10 -9 -9 -9 -8 -8 -8 -8 -8 -7 -7 -6 -6 -5 -5 -4 -4 -4 -4 -3 -3 -3 -3 -2 -2 -1 -1 -------- Run | Jun Mat Min Mat Min Exi Min Mat Gar Mat Gar Fac Gar Fac Gar Fac Gar Fac Gar Fac Gar Res Gar Res Gar Res Gar Acc Com Total Allies 210 | . . 1 . 3 . . . 4 . 13 . 12 . 23 3 9 5 10 . 5 . 15 5 25 7 21 42 7 Largest Group 15 | . . 1 1 3 3 3 2 4 4 9 9 14 8 12 9 8 3 4 2 3 . 9 6 15 15 10 7 4 Highest-Rated Group 781 | . . 31 31 40 40 40 32 80 80 199 199 264 127 329 267 236 152 185 96 145 . 468 286 781 781 525 435 232 Highest-Rated Ally 119 | . . 31 31 16 16 16 16 25 25 39 39 39 16 51 51 51 58 49 49 49 . 64 58 89 89 119 119 64 Total Orders 28 | . . . . . . . . . . 2 . 2 . 1 . 3 . 2 . 3 . 4 1 2 . 8 . . STAY 17 | . . . . . . . . . . 1 . 1 . 1 . 1 . 1 . 2 . 2 1 1 . 6 . . ROAM 1 | . . . . . . . . . . . . . . . . . . . . 1 . . . . . . . . FOLLOW 10 | . . . . . . . . . . 1 . 1 . . . 2 . 1 . . . 2 . 1 . 2 . . Ally Attacks 1131 | . . 1 19 . . 4 7 6 . 84 . 152 58 132 51 80 25 40 . 35 . 59 35 30 64 80 154 15 Total Damage 28223 | . . 22 274 . . 67 98 172 . 1466 . 2267 701 2167 1011 2421 759 1036 . 773 . 1574 994 923 1807 4119 5184 388 Kills 187 | . . 1 7 . . . . 3 . 20 . 25 8 20 10 18 8 5 . 3 . 6 3 4 10 16 20 . Allies Corrupted 3 | . . . . . . . . . . . . . . . . . . . . . . . 1 1 . 1 . . Allies Melted 5 | . . . . . . . . . . . . 1 . . . 1 . . . 1 . . . . 1 . . 1 Intel | -11 -10 -10 -9 -9 -9 -8 -8 -8 -8 -8 -7 -7 -6 -6 -5 -5 -4 -4 -4 -4 -3 -3 -3 -3 -2 -2 -1 -1 ------- Run | Jun Mat Min Mat Min Exi Min Mat Gar Mat Gar Fac Gar Fac Gar Fac Gar Fac Gar Fac Gar Res Gar Res Gar Res Gar Acc Com Robot Analysis Total 2 | . 2 . . . . . . . . . . . . . . . . . . . . . . . . . . . Derelict Logs Recovered 2 | . . 1 . 1 . . . . . . . . . . . . . . . . . . . . . . . . Drone Launches . | . . . . . . . . . . . . . . . . . . . . . . . . . . . . . Drone Recoveries . | . . . . . . . . . . . . . . . . . . . . . . . . . . . . . Exploration | -11 -10 -10 -9 -9 -9 -8 -8 -8 -8 -8 -7 -7 -6 -6 -5 -5 -4 -4 -4 -4 -3 -3 -3 -3 -2 -2 -1 -1 ------------- Run | Jun Mat Min Mat Min Exi Min Mat Gar Mat Gar Fac Gar Fac Gar Fac Gar Fac Gar Fac Gar Res Gar Res Gar Res Gar Acc Com Turns Passed 22568 | 150 1174 128 958 307 296 609 443 1589 20 1469 12 908 392 1593 485 1727 409 1017 245 1600 131 1305 626 1711 309 1563 883 509 Spaces Moved 17382 | 77 1093 202 1107 589 390 594 291 1051 18 985 10 719 327 1288 451 1257 360 716 226 828 123 796 427 1175 219 1011 610 442 Core 4 | 4 . . . . . . . . . . . . . . . . . . . . . . . . . . . . Treads . | . . . . . . . . . . . . . . . . . . . . . . . . . . . . . Legs 14579 | 73 323 . . . 259 594 291 1051 18 985 10 719 327 1288 451 1257 360 716 226 828 123 796 427 1175 219 1011 610 442 Wheels . | . . . . . . . . . . . . . . . . . . . . . . . . . . . . . Hover . | . . . . . . . . . . . . . . . . . . . . . . . . . . . . . Flight 2799 | . 770 202 1107 589 131 . . . . . . . . . . . . . . . . . . . . . . . Fastest Speed 29 | 50 37 37 29 29 29 45 90 90 90 90 90 90 90 90 90 45 60 60 100 100 100 70 105 105 70 70 70 66 Average Speed 86 | 116 61 37 30 29 69 89 90 90 90 90 90 90 90 90 90 92 89 100 100 100 100 104 105 105 104 107 101 102 Slowest Speed 180 | 120 120 37 115 29 125 90 90 90 90 90 90 90 90 90 90 105 105 105 100 100 100 105 105 105 105 180 180 175 Overloaded Moves 341 | . . . . . . 1 . . . . . . . . . 5 128 23 . . . 2 . . 3 8 152 19 Propulsion Burnouts . | . . . . . . . . . . . . . . . . . . . . . . . . . . . . . Robots Hopped 8 | . 2 1 . 5 . . . . . . . . . . . . . . . . . . . . . . . . Cave-ins Triggered . | . . . . . . . . . . . . . . . . . . . . . . . . . . . . . Exploration Rate (%) 48 | 4 94 35 94 83 85 98 29 83 5 76 1 64 13 77 13 82 16 54 10 65 4 83 14 81 11 95 20 26 Regions Visited 28 Branch Regions 5 Pre-discovered Areas 4 | . 1 . 1 1 1 . . . . . . . . . . . . . . . . . . . . . . . Known Exits Taken 12 | . . . 1 . . 1 1 . 1 . 1 . 1 . 1 . 1 . 1 . 1 . 1 . 1 . . . Unknown Exits Taken 6 | 1 1 1 . 1 1 . . . . . . . . . . . . . . . . . . . . . 1 . Scrap Searched 3 | . . . . 2 . 1 . . . . . . . . . . . . . . . . . . . . . . Spaces Dug 97 | . . . . . . 7 1 10 . . . . 1 . . 10 2 16 . 3 . 3 1 . 2 . 17 24 Terrain Destroyed 769 | . . . 64 . . 22 1 19 . 22 . . 5 1 . 27 5 38 . 11 . 38 1 55 37 95 251 77 Melee 1 | . . . . . . . 1 . . . . . . . . . . . . . . . . . . . . . Projectile 60 | . . . . . . . . . . . . . 5 1 . 27 5 4 . 11 . 4 1 . 2 . . . AOE 708 | . . . 64 . . 22 . 19 . 22 . . . . . . . 34 . . . 34 . 55 35 95 251 77 Terrain Rammed . | . . . . . . . . . . . . . . . . . . . . . . . . . . . . . Walls Destroyed . | . . . . . . . . . . . . . . . . . . . . . . . . . . . . . Machines Disabled . | . . . . . . . . . . . . . . . . . . . . . . . . . . . . . Actions | -11 -10 -10 -9 -9 -9 -8 -8 -8 -8 -8 -7 -7 -6 -6 -5 -5 -4 -4 -4 -4 -3 -3 -3 -3 -2 -2 -1 -1 --------- Run | Jun Mat Min Mat Min Exi Min Mat Gar Mat Gar Fac Gar Fac Gar Fac Gar Fac Gar Fac Gar Res Gar Res Gar Res Gar Acc Com Total 23355 | 114 1373 247 1541 689 413 646 426 1521 21 1531 12 951 403 1673 522 1687 419 993 244 1469 131 1178 584 1607 271 1431 770 488 Wait 3391 | 21 129 41 275 72 12 30 75 295 4 350 2 147 46 242 47 185 14 204 17 451 . 239 81 199 4 169 30 10 Move 17343 | 76 1088 199 1106 578 389 593 291 1050 17 984 10 718 327 1286 451 1256 360 715 226 827 122 795 427 1173 218 1010 609 442 Hop 8 | . 2 1 . 5 . . . . . . . . . . . . . . . . . . . . . . . . Pick Up 104 | . 1 1 5 . . . 3 5 . 8 . 9 2 12 . 12 1 7 . 9 . 8 4 5 2 6 2 2 Fast Attach 89 | 7 7 1 14 4 6 1 2 6 . 1 . 2 1 6 2 5 1 . . 1 2 2 6 3 3 1 3 2 Attach 29 | . . . . . . . . 1 . 4 . 3 1 3 . 3 . . . 3 . 3 1 1 . 1 3 2 Detach 16 | . . . . . . . . 2 . 3 . 1 . 1 . 1 . . . . . 1 1 1 . 1 . 4 Swap 84 | . . . 7 . . 2 2 2 . 3 . 4 . 4 2 5 1 3 1 3 . 5 1 10 4 8 13 4 Drop 124 | . 4 1 13 4 6 1 5 6 . 5 . 6 2 12 2 14 1 4 . 8 2 6 8 7 4 2 . 1 Fire 1081 | 10 113 3 96 18 . 15 27 95 . 30 . 31 12 51 12 99 28 28 . 77 . 57 25 48 34 78 82 12 Melee 1 | . . . . . . . 1 . . . . . . . . . . . . . . . . . . . . . Ram . | . . . . . . . . . . . . . . . . . . . . . . . . . . . . . Kick 29 | . . . . . . 1 . . . . . . . . . 3 12 . . 4 . 2 5 . . . 2 . Crush . | . . . . . . . . . . . . . . . . . . . . . . . . . . . . . Escape Stasis 140 | . . . . . . . . 7 . 10 . 10 . 14 . 16 . 1 . 10 5 10 . 19 . 30 8 . Rewire 363 | . . . . . . . . 19 . 111 . 1 . 15 . 27 1 3 . . . 15 2 123 . 44 2 . Trap . | . . . . . . . . . . . . . . . . . . . . . . . . . . . . . Miscellaneous 553 | . 29 . 25 8 . 3 20 33 . 22 . 19 12 27 6 61 . 28 . 76 . 35 23 18 2 81 16 9 Route ------- -11/Junkyard -10/Materials (discovered 4 exits: *Mat x3 / [*Min]) -10/Mines -9/Materials (discovered 4 exits: *Mat x3 / *Min) -9/Mines (discovered 3 exits: *Mat x2 / *Exi) -9/Exiles -8/Mines (discovered 2 exits: *Mat x2) -8/Materials (discovered 3 exits: *Sto x2 / Gar) -8/Garrison (discovered 3 exits: *Mat x3) -8/Materials -8/Garrison (discovered 4 exits: *Fac x3 / [*Mat]) -7/Factory -7/Garrison (discovered 3 exits: *Fac x3) -6/Factory (discovered 2 exits: [*Ext] / Gar) -6/Garrison (discovered 3 exits: *Fac x3) -5/Factory -5/Garrison (discovered 3 exits: *Fac x3) -4/Factory -4/Garrison (discovered 4 exits: *Fac x4) -4/Factory -4/Garrison (discovered 3 exits: *Res x3) -3/Research -3/Garrison (discovered 3 exits: *Res x3) -3/Research (discovered 2 exits: *Res / Gar) -3/Garrison (discovered 3 exits: *Res x3) -2/Research -2/Garrison (discovered 3 exits: *Acc x3) -1/Access -1/Command History --------- Turn | Location | Event 3 | -11/Junkyard | Discovered new exit (range 16) 5 | -11/Junkyard | Upgraded with Propulsion slot (x1) 5 | -11/Junkyard | Upgraded with Utility slot (x1) 5 | -11/Junkyard | Upgraded with Weapon slot (x1) 131 | -11/Junkyard | Upgraded with Utility slot (x1) 151 | -11/Junkyard | Entered Materials 304 | -10/Materials | Build established: Mutant 479 | -10/Materials | Discovered new exit (range 3) 518 | -10/Materials | Discovered new exit (range 16) 671 | -10/Materials | Reached level 2 737 | -10/Materials | Discovered new exit (range 5) 789 | -10/Materials | Upgraded with Utility slot (x1) 934 | -10/Materials | Reached level 3 941 | -10/Materials | Upgraded with Utility slot (x1) 964 | -10/Materials | Discovered new exit (range 7) 1165 | -10/Materials | Build established: Scavenger-Mutant 1264 | -10/Materials | Reached level 4 1325 | -10/Materials | Entered Mines 1326 | -10/Mines | Upgraded with Utility slot (x1) 1350 | -10/Mines | Received a Mining Laser from a helpful Derelict 1354 | -10/Mines | Discovered new exit (range 7) 1406 | -10/Mines | Assembled infested the area 1411 | -10/Mines | Assisted by a Guerilla fighting off Assembled 1453 | -10/Mines | Entered Materials 1453 | -9/Materials | Accompanied by 1 ally 1455 | -9/Materials | Reached level 5 1471 | -9/Materials | Reached level 6 1476 | -9/Materials | Upgraded with Propulsion slot (x1) 1587 | -9/Materials | Discovered new exit (range 11) 1657 | -9/Materials | Reached level 7 1698 | -9/Materials | Upgraded with Utility slot (x1) 1900 | -9/Materials | Reached level 8 1968 | -9/Materials | Build established: Sprinter 2084 | -9/Materials | Discovered new exit (range 7) 2105 | -9/Materials | Upgraded with Utility slot (x1) 2148 | -9/Materials | Discovered new exit (range 16) 2251 | -9/Materials | Discovered new exit (range 9) 2258 | -9/Materials | Reached level 9 2279 | -9/Materials | Upgraded with Weapon slot (x1) 2348 | -9/Materials | Identified exit to Mines 2411 | -9/Materials | Entered Mines 2414 | -9/Mines | Discovered new exit (range 8) 2425 | -9/Mines | Learned location of Recycling (-8) 2428 | -9/Mines | Joined a pair of Derelicts in attacking an 0b10 outpost 2445 | -9/Mines | Met a Derelict bent on vengeance 2476 | -9/Mines | Met a Derelict shopkeep closing up shop 2505 | -9/Mines | A Derelict revealed a hidden shortcut to a safe place 2558 | -9/Mines | Found a damaged Exp. Sensor Array with a note attached 2559 | -9/Mines | Destroyed 7 combat bots 2636 | -9/Mines | Assisted by bots powering up and referring to "LRC-V3" 2656 | -9/Mines | Discovered new exit (range 10) 2658 | -9/Mines | Deemed a non-threat by the Exiles lab entrance 2658 | -9/Mines | Discovered new exit (range 5) 2718 | -9/Mines | Entered Exiles 2718 | -9/Exiles | Accompanied by 3 allies 2726 | -9/Exiles | Met 8R-AWN 2731 | -9/Exiles | Met EX-HEX 2740 | -9/Exiles | Met EX-BIN 2745 | -9/Exiles | Reached level 10 2745 | -9/Exiles | Aligned with FarCom system 2745 | -9/Exiles | Given EX-Vault access code 2752 | -9/Exiles | Opened EX-Vault 2755 | -9/Exiles | Found Prototype Energy Cannon 2755 | -9/Exiles | Identified Firepult 2758 | -9/Exiles | Found Prototype Special Weapon 2758 | -9/Exiles | Identified Field Lobotomy Kit 2765 | -9/Exiles | Found Prototype Leg 2765 | -9/Exiles | Identified Potential Leg 2768 | -9/Exiles | Found Potential Leg 2786 | -9/Exiles | Warned to stay clear of 0b10 Research branches 2812 | -9/Exiles | Met EX-DEC 2831 | -9/Exiles | Learned location of Zion (-7) 2873 | -9/Exiles | Visited The Gauntlet 2992 | -9/Exiles | Discovered new exit (range 12) 3014 | -9/Exiles | Left Exiles lab with Potential Leg 3014 | -9/Exiles | Entered Mines 3014 | -8/Mines | Accompanied by 3 allies 3102 | -8/Mines | Build established: Gunner 3180 | -8/Mines | Discovered new exit (range 10) 3225 | -8/Mines | Discovered new exit (range 5) 3235 | -8/Mines | Identified exit to Materials 3235 | -8/Mines | Reached level 11 3623 | -8/Mines | Entered Materials 3623 | -8/Materials | Accompanied by 2 allies 3624 | -8/Materials | Identified exit to Storage 3745 | -8/Materials | Reached level 12 3748 | -8/Materials | Discovered exit to Storage (range 13) 4066 | -8/Materials | Identified exit to Garrison 4066 | -8/Materials | Entered Garrison 4104 | -8/Garrison | Triggered checkpoint 4156 | -8/Garrison | Garrison Relay disabled 4194 | -8/Garrison | Triggered checkpoint 4361 | -8/Garrison | Upgraded with Utility slot (x1) 4382 | -8/Garrison | Garrison Relay disabled 4384 | -8/Garrison | Garrison Relay disabled 4586 | -8/Garrison | Reached level 13 4611 | -8/Garrison | Spotted B-75 Beast 4611 | -8/Garrison | Spotted B-75 Beast 4645 | -8/Garrison | Destroyed B-75 Beast 4654 | -8/Garrison | Upgraded with Power slot (x1) 4692 | -8/Garrison | Triggered checkpoint 4731 | -8/Garrison | Discovered new exit (range 10) 4832 | -8/Garrison | Installed Relay Interface Framework 4862 | -8/Garrison | Garrison Relay disabled 4967 | -8/Garrison | Discovered new exit (range 10) 4986 | -8/Garrison | Triggered checkpoint 5013 | -8/Garrison | Garrison Relay disabled 5021 | -8/Garrison | Upgraded with Utility slot (x1) 5146 | -8/Garrison | Triggered checkpoint 5202 | -8/Garrison | Garrison Relay disabled 5204 | -8/Garrison | Garrison Relay disabled 5460 | -8/Garrison | Discovered new exit (range 11) 5504 | -8/Garrison | Triggered checkpoint 5524 | -8/Garrison | Expanded RIF knowledge: Patrol Navigation 5524 | -8/Garrison | Reached level 14 5532 | -8/Garrison | Garrison Relay disabled 5655 | -8/Garrison | Entered Materials 5655 | -8/Materials | Accompanied by 4 allies 5668 | -8/Materials | Identified exit to Garrison 5675 | -8/Materials | Entered Garrison 5675 | -8/Garrison | Accompanied by 4 allies 5720 | -8/Garrison | Triggered checkpoint 5770 | -8/Garrison | Garrison Relay disabled 5794 | -8/Garrison | Triggered checkpoint 5848 | -8/Garrison | Triggered checkpoint 5850 | -8/Garrison | Triggered checkpoint 5851 | -8/Garrison | Triggered checkpoint 5858 | -8/Garrison | Triggered checkpoint 5885 | -8/Garrison | Destroyed 7 combat bots 5952 | -8/Garrison | Discovered new exit (range 15) 5977 | -8/Garrison | Expanded RIF knowledge: Zone Cloak 6010 | -8/Garrison | Triggered checkpoint 6018 | -8/Garrison | Garrison Relay disabled 6122 | -8/Garrison | Triggered checkpoint 6145 | -8/Garrison | Discovered new exit (range 5) 6236 | -8/Garrison | Discovered new exit (range 14) 6274 | -8/Garrison | Triggered checkpoint 6291 | -8/Garrison | Garrison Relay disabled 6413 | -8/Garrison | Build established: Commander-Mutant 6572 | -8/Garrison | Triggered checkpoint 6576 | -8/Garrison | Reached level 15 6671 | -8/Garrison | Discovered new exit (range 11) 6700 | -8/Garrison | Garrison Relay disabled 6703 | -8/Garrison | Upgraded with Utility slot (x1) 7144 | -8/Garrison | Entered Factory 7144 | -7/Factory | Accompanied by 9 allies 7154 | -7/Factory | Identified exit to Garrison 7156 | -7/Factory | Entered Garrison 7156 | -7/Garrison | Accompanied by 9 allies 7182 | -7/Garrison | Triggered checkpoint 7197 | -7/Garrison | Garrison Relay disabled 7241 | -7/Garrison | Reached level 16 7336 | -7/Garrison | Discovered new exit (range 34) 7336 | -7/Garrison | Discovered new exit (range 82) 7336 | -7/Garrison | Discovered new exit (range 69) 7398 | -7/Garrison | Triggered checkpoint 7409 | -7/Garrison | Triggered checkpoint 7420 | -7/Garrison | Triggered checkpoint 7452 | -7/Garrison | Triggered checkpoint 7454 | -7/Garrison | Reached level 17 7605 | -7/Garrison | Expanded RIF knowledge: Hotswap 7654 | -7/Garrison | Triggered checkpoint 7669 | -7/Garrison | Garrison Relay disabled 7951 | -7/Garrison | Garrison Relay disabled 7997 | -7/Garrison | Build established: Bothacker-Mutant 8027 | -7/Garrison | Garrison Relay disabled 8064 | -7/Garrison | Entered Factory 8064 | -6/Factory | Accompanied by 8 allies 8213 | -6/Factory | Assembled infested ambush trap array 8269 | -6/Factory | Discovered new exit (range 14) 8283 | -6/Factory | Destroyed 7 combat bots 8414 | -6/Factory | First assault squad dispatched 8456 | -6/Factory | Identified exit to Garrison 8456 | -6/Factory | Entered Garrison 8456 | -6/Garrison | Accompanied by 5 allies 8458 | -6/Garrison | Reached level 18 8530 | -6/Garrison | Triggered checkpoint 8607 | -6/Garrison | Garrison Relay disabled 8651 | -6/Garrison | Triggered checkpoint 8672 | -6/Garrison | Triggered checkpoint 8692 | -6/Garrison | Triggered checkpoint 8714 | -6/Garrison | Triggered checkpoint 8840 | -6/Garrison | Discovered new exit (range 10) 8899 | -6/Garrison | Garrison Relay disabled 8899 | -6/Garrison | Reached level 19 8904 | -6/Garrison | Triggered checkpoint 8967 | -6/Garrison | Discovered new exit (range 10) 8976 | -6/Garrison | Expanded RIF knowledge: Signal Jamming 9008 | -6/Garrison | Triggered checkpoint 9030 | -6/Garrison | Garrison Relay disabled 9108 | -6/Garrison | Discovered new exit (range 10) 9144 | -6/Garrison | Triggered checkpoint 9333 | -6/Garrison | H-XX Assembler disabled 9378 | -6/Garrison | Found Prototype Device 9378 | -6/Garrison | Identified Active Sensor Suite 9756 | -6/Garrison | Triggered checkpoint 9779 | -6/Garrison | Garrison Relay disabled 10049 | -6/Garrison | Entered Factory 10049 | -5/Factory | Accompanied by 7 allies 10051 | -5/Factory | Reached level 20 10087 | -5/Factory | Build established: Botlord-Mutant 10116 | -5/Factory | Reached level 21 10132 | -5/Factory | Upgraded with Utility slot (x1) 10419 | -5/Factory | Garrison activated, responded to threat 10531 | -5/Factory | Identified exit to Garrison 10534 | -5/Factory | Entered Garrison 10534 | -5/Garrison | Accompanied by 7 allies 10597 | -5/Garrison | Reached level 22 10605 | -5/Garrison | Triggered checkpoint 10609 | -5/Garrison | Triggered checkpoint 10754 | -5/Garrison | Discovered new exit (range 14) 10798 | -5/Garrison | Triggered checkpoint 10862 | -5/Garrison | Garrison Relay disabled 11024 | -5/Garrison | Discovered new exit (range 10) 11265 | -5/Garrison | Discovered new exit (range 8) 11318 | -5/Garrison | Spotted B-75 Beast 11333 | -5/Garrison | Destroyed B-75 Beast 11370 | -5/Garrison | Found Relay Coupler [Proto] 11373 | -5/Garrison | Found Relay Coupler [Proto] 11410 | -5/Garrison | Expanded RIF knowledge: Zone Cloak 11410 | -5/Garrison | Reached level 23 11421 | -5/Garrison | Garrison Relay disabled 11460 | -5/Garrison | Triggered checkpoint 11622 | -5/Garrison | Garrison Relay disabled 11699 | -5/Garrison | Garrison Relay disabled 11748 | -5/Garrison | Triggered checkpoint 11807 | -5/Garrison | Garrison Relay disabled 11812 | -5/Garrison | Upgraded with Utility slot (x1) 11964 | -5/Garrison | Upgraded with Propulsion slot (x1) 12106 | -5/Garrison | Triggered checkpoint 12175 | -5/Garrison | Garrison Relay disabled 12261 | -5/Garrison | Entered Factory 12261 | -4/Factory | Accompanied by 2 allies 12263 | -4/Factory | Reached level 24 12493 | -4/Factory | Spotted B-86 Titan 12511 | -4/Factory | First assault squad dispatched 12623 | -4/Factory | Core integrity fell below 50% 12658 | -4/Factory | Spotted B-86 Titan 12668 | -4/Factory | Core integrity fell below 20% 12670 | -4/Factory | Identified exit to Garrison 12670 | -4/Factory | Entered Garrison 12724 | -4/Garrison | Triggered checkpoint 12798 | -4/Garrison | Garrison Relay disabled 12977 | -4/Garrison | Spotted B-86 Titan 12978 | -4/Garrison | Triggered checkpoint 12981 | -4/Garrison | Triggered checkpoint 12984 | -4/Garrison | Triggered checkpoint 12985 | -4/Garrison | Reached level 25 12989 | -4/Garrison | Destroyed B-86 Titan 13150 | -4/Garrison | Discovered new exit (range 13) 13295 | -4/Garrison | Expanded RIF knowledge: Command Fork 13371 | -4/Garrison | Discovered new exit (range 61) 13371 | -4/Garrison | Discovered new exit (range 32) 13371 | -4/Garrison | Discovered new exit (range 34) 13371 | -4/Garrison | Discovered new exit (range 16) 13431 | -4/Garrison | Garrison Relay disabled 13687 | -4/Garrison | Entered Factory 13687 | -4/Factory | Accompanied by 2 allies 13930 | -4/Factory | Identified exit to Garrison 13932 | -4/Factory | Entered Garrison 13932 | -4/Garrison | Accompanied by 2 allies 14024 | -4/Garrison | Triggered checkpoint 14152 | -4/Garrison | Garrison Relay disabled 14176 | -4/Garrison | Triggered checkpoint 14356 | -4/Garrison | Reached level 26 14593 | -4/Garrison | Spotted B-86 Titan 14603 | -4/Garrison | Triggered checkpoint 14846 | -4/Garrison | Destroyed B-86 Titan 15051 | -4/Garrison | Triggered checkpoint 15079 | -4/Garrison | Triggered checkpoint 15152 | -4/Garrison | Triggered checkpoint 15180 | -4/Garrison | Garrison Relay disabled 15234 | -4/Garrison | Discovered new exit (range 19) 15234 | -4/Garrison | Discovered new exit (range 80) 15234 | -4/Garrison | Discovered new exit (range 108) 15371 | -4/Garrison | Expanded RIF knowledge: Program Shield 15407 | -4/Garrison | Garrison Relay disabled 15532 | -4/Garrison | Entered Research 15534 | -3/Research | Reached level 27 15650 | -3/Research | Identified exit to Garrison 15663 | -3/Research | Entered Garrison 15758 | -3/Garrison | Triggered checkpoint 15812 | -3/Garrison | Assimilated ARC 8a with formatsys_deep 15841 | -3/Garrison | Garrison Relay disabled 15992 | -3/Garrison | Reached level 28 15995 | -3/Garrison | Upgraded with Power slot (x1) 16049 | -3/Garrison | Upgraded with Weapon slot (x1) 16068 | -3/Garrison | Triggered checkpoint 16078 | -3/Garrison | Triggered checkpoint 16084 | -3/Garrison | Spotted B-86 Titan 16085 | -3/Garrison | Allies destroyed B-86 Titan 16174 | -3/Garrison | Discovered new exit (range 10) 16243 | -3/Garrison | Triggered checkpoint 16426 | -3/Garrison | Discovered new exit (range 15) 16455 | -3/Garrison | Discovered new exit (range 59) 16455 | -3/Garrison | Discovered new exit (range 15) 16455 | -3/Garrison | Discovered new exit (range 49) 16484 | -3/Garrison | Triggered checkpoint 16506 | -3/Garrison | Garrison Relay disabled 16653 | -3/Garrison | Garrison Relay disabled 16670 | -3/Garrison | Triggered checkpoint 16691 | -3/Garrison | Expanded RIF knowledge: Crosswire 16691 | -3/Garrison | Reached level 29 16808 | -3/Garrison | Triggered checkpoint 16871 | -3/Garrison | Garrison Relay disabled 16968 | -3/Garrison | Entered Research 16968 | -3/Research | Accompanied by 3 allies 16998 | -3/Research | Found Fusion Bomb Launcher 17218 | -3/Research | First assault squad dispatched 17351 | -3/Research | Discovered new exit (range 15) 17594 | -3/Research | Identified exit to Garrison 17594 | -3/Research | Entered Garrison 17610 | -3/Garrison | Expanded RIF knowledge: Structural Interface 17642 | -3/Garrison | Garrison Relay disabled 17648 | -3/Garrison | Garrison Relay disabled 17713 | -3/Garrison | Garrison Relay disabled 17831 | -3/Garrison | Triggered checkpoint 17832 | -3/Garrison | Triggered checkpoint 17966 | -3/Garrison | Triggered checkpoint 18000 | -3/Garrison | Triggered checkpoint 18008 | -3/Garrison | Garrison Relay disabled 18130 | -3/Garrison | Reached level 30 18152 | -3/Garrison | Rescued a captive Derelict 18155 | -3/Garrison | Rescued a captive Derelict 18203 | -3/Garrison | Discovered new exit (range 10) 18248 | -3/Garrison | Triggered checkpoint 18248 | -3/Garrison | Assimilated ARC 8b with formatsys_deep 18380 | -3/Garrison | Triggered checkpoint 18486 | -3/Garrison | Triggered checkpoint 18505 | -3/Garrison | Garrison Relay disabled 18746 | -3/Garrison | Discovered new exit (range 10) 18765 | -3/Garrison | Spotted B-75 Beast 18814 | -3/Garrison | Triggered checkpoint 18816 | -3/Garrison | Master 8b assimilated hostile B-74 Champion 18845 | -3/Garrison | Garrison Relay disabled 19000 | -3/Garrison | Discovered new exit (range 63) 19000 | -3/Garrison | Discovered new exit (range 85) 19000 | -3/Garrison | Discovered new exit (range 13) 19162 | -3/Garrison | Garrison Relay disabled 19305 | -3/Garrison | Entered Research 19305 | -2/Research | Accompanied by 15 allies 19337 | -2/Research | Reached level 31 19369 | -2/Research | Master 8a assimilated hostile W-44 Eye 19383 | -2/Research | Spotted B-90 Cyclops 19389 | -2/Research | Destroyed B-90 Cyclops 19403 | -2/Research | Upgraded with Power slot (x1) 19555 | -2/Research | First assault squad dispatched 19592 | -2/Research | Reached level 32 19604 | -2/Research | Garrison activated, responded to threat 19606 | -2/Research | Identified exit to Garrison 19614 | -2/Research | Entered Garrison 19614 | -2/Garrison | Accompanied by 5 allies 19734 | -2/Garrison | Triggered checkpoint 19780 | -2/Garrison | Garrison Relay disabled 19825 | -2/Garrison | Spotted B-90 Cyclops 19840 | -2/Garrison | Triggered checkpoint 19862 | -2/Garrison | Triggered checkpoint 19867 | -2/Garrison | Triggered checkpoint 19929 | -2/Garrison | Destroyed B-90 Cyclops 19988 | -2/Garrison | Destroyed 8 combat bots 20042 | -2/Garrison | Discovered new exit (range 15) 20065 | -2/Garrison | Expanded RIF knowledge: Autoassimilate 20085 | -2/Garrison | Reached level 33 20216 | -2/Garrison | Triggered checkpoint 20224 | -2/Garrison | Garrison Relay disabled 20228 | -2/Garrison | Upgraded with Utility slot (x1) 20270 | -2/Garrison | Triggered checkpoint 20344 | -2/Garrison | Discovered new exit (range 16) 20358 | -2/Garrison | Triggered checkpoint 20373 | -2/Garrison | Garrison Relay disabled 20526 | -2/Garrison | Spotted B-90 Cyclops 20544 | -2/Garrison | Destroyed B-90 Cyclops 20591 | -2/Garrison | Garrison Relay disabled 20705 | -2/Garrison | Rewired Executioner 20709 | -2/Garrison | Rewired Executioner 20734 | -2/Garrison | Discovered new exit (range 5) 20788 | -2/Garrison | Triggered checkpoint 20812 | -2/Garrison | Garrison Relay disabled 21016 | -2/Garrison | Phase Generator disabled 21177 | -2/Garrison | Entered Access 21177 | -1/Access | Accompanied by 5 allies 21179 | -1/Access | Reached level 34 21306 | -1/Access | High security lockdown imminent 21386 | -1/Access | High security lockdown engaged 21393 | -1/Access | Energy Cycler disabled 21599 | -1/Access | Spotted Investigator 21603 | -1/Access | Scanned by Researcher 21611 | -1/Access | Destroyed Investigator 21619 | -1/Access | Reached level 35 21656 | -1/Access | Destroyed 7 combat bots 21665 | -1/Access | Spotted Executioner 21687 | -1/Access | Core integrity fell below 50% 21708 | -1/Access | Destroyed Executioner 21732 | -1/Access | Spotted Executioner 21739 | -1/Access | Spotted Executioner 21752 | -1/Access | Core integrity fell below 20% 21779 | -1/Access | Destroyed 9 combat bots 21788 | -1/Access | Destroyed Executioner 21788 | -1/Access | Destroyed Executioner 21805 | -1/Access | Assimilated ARC 10a with formatsys_deep 21891 | -1/Access | Spotted Executioner 21894 | -1/Access | Spotted Striker 21902 | -1/Access | Destroyed Executioner 21915 | -1/Access | Destroyed Striker 21932 | -1/Access | Reached level 36 21939 | -1/Access | Destroyed 8 combat bots 21945 | -1/Access | Spotted Striker 21945 | -1/Access | Spotted Striker 21948 | -1/Access | Spotted Striker 21987 | -1/Access | Destroyed Striker 21989 | -1/Access | Destroyed Striker 21997 | -1/Access | Spotted Executioner 22000 | -1/Access | Spotted Striker 22000 | -1/Access | Spotted Striker 22055 | -1/Access | Discovered new exit (range 8) 22060 | -1/Access | Entered Command 22310 | -1/Command | First assault squad dispatched 22550 | -1/Command | Spotted Striker 22555 | -1/Command | Spotted Executioner 22556 | -1/Command | Spotted Executioner 22556 | -1/Command | Spotted Alpha 7 22556 | -1/Command | Spotted Alpha 7 22556 | -1/Command | Spotted Striker 22558 | -1/Command | Spotted Executioner 22558 | -1/Command | Spotted Executioner 22560 | -1/Command | Spotted B-99 Colossus 22563 | -1/Command | Spotted B-99 Colossus 22569 | -1/Command | Destroyed by B-99 Colossus with Linear Accelerator Last Messages --------------- 22564_ Slug penetrates Striker. 22564_ Penetrated by Slug. 22565_ K-01 Serf collects debris. 22565_ R-10 Processor collects Field Recycling Unit. 22565_ Knocked back. 22565_ Striker knocked back. 22566_ RIF automatically installing new Plague 10d system data, ETC: 6. 22566_ Slug penetrates Executioner. 22566_ Slug penetrates Striker. 22566_ Penetrated by Slug. 22566_ Slug penetrates Wall. 22567_ Slug penetrates K-01 Serf. 22567_ K-01 Serf destroyed. 22567_ Striker suffers critical hit (Destroy). 22567_ Striker destroyed. 22568_ Penetrated by Slug. 22568_ Slug penetrates Wall. 22568_ Penetrated by Slug. 22569_ The unstable cave ceiling collapses. [Achievement: Back For More] Map ----- +----------------------------------------------------+ | [#???????????# #????????# ""T"" #??????? | | #??????###### #????????# * #??????? | | #??????# #????????#! #??????? | | #??????+ ########## #??????? | | #??????# # + +??????? | | #????????# # # "" #??????? | | +????????# # # """" #??????? | | #????????# + # """" #??????? | | ! #????????# # / "" #??????? | | * #??????### # [ # #??????? | | #######??### # ###### # * +??????? | | ! #### ######################+#####??????? | | # [#??# # #?????????? | | "" ! ! #??# # #?????????? | | """" =[ #??# !!! + #?????????? | | """" #??# !! # #?????????? | | "" # # #####??# !! # #?????????? | | #??????# # #?????????? | | # #??????# # #?????????? | | ####### # #??????########+#### #?????????? | | ??????## ####?????????????# #??# #?????????? | | ##?????######????????????????# #### #?????????? | | #???????????????????????????# %[ #?????????? | | #?????????? ????#####?####??# [ #?????????? | | #????????? ## # #??# #?????????? | | #???????? ^ @##?# #?????????? | | #???????????" BB E ###% #"### #???? | | #???????????" BB EKE7=! % w #???? | | #???????????" % E //%% ! %= #???? | | #???????????" /!] % +???? | | ##???????????" BB 7/ * % #???? | | #???????????" BB ####% ########### #???? | | #??????????? #??#= #???????????#???? | | #??????????? #; #######??# #???????????????? | | #??????????? ?####?????????# #???????????????? | | #????????????#???????????????# #???????????????? | | #????????????????????????????# #???????????????? | | ##????????????????????????????# #???????????????? | | ??????????????????????????????# #???????????????? | | ??????????????????????????????# #???????????????? | | ??????????????????????????????# #???????????????? | | ???????????????????????????# ????????????????? | | #?????????????????????????????# ?????????????????? | | ?????????????????????????????????????????????????? | | ?????????????????????????????????????????????????? | | ?????????????????????????????????????????????????? | | ?????????????????????????????????????????????????? | | ?????????????????????????????????????????????????? | | ?????????????????????????????????????????????????? | | ?????????????????????????????????????????????????? | +----------------------------------------------------+ Best States ------------- Heat Dissipation 65 Coolant Potential 100 Energy Generation 85 Energy Capacity 1100 Matter Stores 300 Matter Capacity 300 Sight Range 16 Terrain Scan Range 16 Terrain Scan Density 110 Base Temperature (-) 200 Corruption Containment 12 Armor Coverage 150 Resistance: KI 20 Weapon Cycling 25 Evasion (%) 64 Targeting Accuracy 34 Target Analysis 5 Core Analysis 6 Recoil Reduction 4 Offensive Hacking 14 Relay Coupler Types 8 Relay Coupler Value 618 Item Schematics ----------------- None Robot Schematics ------------------ None Fabricated ------------ Nothing Alien Tech Used ----------------- None Achievements -------------- Back For More Challenges ------------ None RPGLIKE | -11 -10 -10 -9 -9 -9 -8 -8 -8 -8 -8 -7 -7 -6 -6 -5 -5 -4 -4 -4 -4 -3 -3 -3 -3 -2 -2 -1 -1 --------- Run | Jun Mat Min Mat Min Exi Min Mat Gar Mat Gar Fac Gar Fac Gar Fac Gar Fac Gar Fac Gar Res Gar Res Gar Res Gar Acc Com Levels Raised 35 | . 3 . 5 . 1 1 1 2 . 1 . 2 . 2 2 2 1 1 . 1 1 2 . 1 2 1 3 . XP Earned 56273 | 3000 4611 777 7045 928 169 1718 1679 2705 . 1456 734 2502 1049 2963 2732 2669 1830 1445 61 1281 1399 2457 416 1381 2883 1929 3947 507 XP Spent 55460 | 2800 2850 1700 7150 . . . . 6000 . 3200 . 3150 . . 3500 4900 1500 2230 . . . 4000 2000 . 1100 4100 5280 . Upgrades 74 | 10 4 1 6 . . . . 3 . 1 . 4 . . 1 2 1 9 . . . 5 1 . 1 1 24 . Power Slot 3 | . . . . . . . . 1 . . . . . . . . . . . . . 1 . . 1 . . . Propulsion Slot 3 | 1 . . 1 . . . . . . . . . . . . 1 . . . . . . . . . . . . Utility Slot 13 | 2 2 1 2 . . . . 2 . 1 . . . . 1 1 . . . . . . . . . 1 . . Weapon Slot 3 | 1 . . 1 . . . . . . . . . . . . . . . . . . 1 . . . . . . Core Integrity 32 | . . . . . . . . . . . . . . . . . . 8 . . . . . . . . 24 . Heat Dissipation 5 | 5 . . . . . . . . . . . . . . . . . . . . . . . . . . . . Mass Support 1 | . 1 . . . . . . . . . . . . . . . . . . . . . . . . . . . Inventory Capacity 8 | . 1 . 2 . . . . . . . . 2 . . . . 1 1 . . . . 1 . . . . . Terrain Scan Density 1 | 1 . . . . . . . . . . . . . . . . . . . . . . . . . . . . Ranged Accuracy 5 | . . . . . . . . . . . . 2 . . . . . . . . . 3 . . . . . . Protomatter Created 4140 | . 213 . 305 164 . 25 49 223 . 23 . 32 3 32 18 271 65 94 . 489 . 69 290 739 204 403 429 . Integrity Restored 10647 | . 533 . 416 122 . 36 430 613 . 390 . 280 257 374 106 1182 . 621 . 1560 . 738 381 262 36 1749 360 201 Core 7683 | . 432 . 325 85 . 29 335 521 . 195 . 185 195 190 25 825 . 552 . 1013 . 559 185 168 . 1303 360 201 Parts 2964 | . 101 . 91 37 . 7 95 92 . 195 . 95 62 184 81 357 . 69 . 547 . 179 196 94 36 446 . . Protomatter Decayed 4845 | . 27 23 124 182 . 12 . 62 . 46 . 410 10 181 54 285 219 31 . 30 . 157 381 658 550 542 797 64 Game ------ Seed HelicalCoolantFlamer Manual? 0 Play Time 05:28:17 Cumulative 217.1 hours Start 2023.03.05 @ 16:10:52 End 2023.03.06 @ 01:09:55 Sessions 5 Manual Loads 0 Difficulty Rogue Special Mode Winter2019/RPGLIKE Game No. 50 Rogue 25 Adventurer 25 Explorer 0 Win Type - Total 16 Types 9/2/1/1/1/0/0/1/1 Lore% 82 Gallery% 76 Achievement% 76 Wizard Run 0 Options --------- ASCII 0 Keyboard 0 Movement Mouse Keybinds 0 Fullscreen 2 Font 24/Smallcaps Map View 76x56 Tactical HUD 1 Map Filters NONE Filters NONE Steam 1 RUN: e7af4963-1597-4cdc-8c26-1d6bf318671d